Workbook

Sheet Overbooking
B1: Airline Overbooking
K2: year | L2: load factor
B3: The following passages are extracts from the cited websites (as of September 21, 2004). | K3: 1990 | L3: 0.62
K4: 2000 | L4: 0.71
B5: Air Transport Association (airlines.org) | K5: 2005 | L5: 0.77
B6: Airline Handbook, Chapter 4: Airline Economics | K6: 2006 | L6: 0.79
K7: 2007 | L7: 0.8
B8: Break-Even Load Factors | K8: 2008 | L8: 0.8
K9: 2009 | L9: 0.81 | N9: Source: Air Transport Association
B10: Every airline has what is called a break-even load factor. That is the percentage of the | K10: 2010 | L10: 0.87
B11: seats the airline has in service that it must sell at a given yield, or price level, to cover
B12: its costs.
K13: Less Free To Move About The Cabin
B14: Since revenue and costs vary from one airline to another, so does the break-even load
B15: factor. Escalating costs push up the break-even load factor, while increasing prices for | K15: Flights Growing More Crowded
B16: airline services have just the opposite effect, pushing it lower. Overall, the break-even
B17: load factor for the industry in recent years has been approximately 66 percent. | K17: By Del Quentin Wilber
K18: Washington Post Staff Writer
B19: Airlines typically operate very close to their break-even load factor. The sale of just one | K19: Monday, December 3, 2007; Page A01
B20: or two more seats on each flight can mean the difference between profit and loss for an
B21: airline. | K21: Federal data show that planes have grown steadily more packed in the past two
K22: decades. In 1990, U.S. air carriers' planes were about 62 percent full. By 2000, the
B23: Overbooking | K23: figure had climbed to 71 percent. Through the first eight months of this year, planes
K24: were 81 percent full, according to the Bureau of Transportation Statistics.
B25: Airlines occasionally overbook flights, meaning that they book more passengers for a
B26: flight than they have seats on the same flight. | K26: Just 10 years ago, airlines could make money on a flight that was a little over half full,
K27: because business travelers were willing to pay thousands of dollars for a ticket,
B28: The practice is rooted in careful analysis of historic demand for a flight, economics and | K28: compensating for unsold seats. But when the tech bubble burst in 2000, business travel
B29: human behavior. Historically, many travelers, especially business travelers buying | K29: and demand for expensive seats declined. The 2001 terrorist attacks also hurt leisure
B30: unrestricted, full-fare tickets, have not traveled on the flights for which they have a | K30: travel. Both trends forced many carriers to slash costs and try to find ways to fly more
B31: reservation. Changes in their own schedules may have made it necessary for them to | K31: efficiently.
B32: take a different flight, maybe with a different airline, or to cancel their travel plans
B33: altogether, often with little or no notice to the airline. Some travelers, unfortunately, | K33: Meanwhile, such low-cost carriers as Southwest Airlines and AirTran Airways continued
B34: reserve seats on more than one flight. | K34: to grow, spurring demand for air travel from people who may not have flown much, or as
K35: much, before. That prodded traditional carriers to match cheap fares to remain
B36: Both airlines and customers are advantaged when airlines sell all the seats for which | K36: competitive. Travel-booking Web sites such as Orbitz and Travelocity also made it
B37: they have received reservations. An airline's inventory is comprised of the seats that it | K37: easier for passengers to compare fares, further reducing ticket prices.
B38: has on each flight. If a customer does not fly on the flight which he or she has a
B39: reservation, his or her seat is unused and cannot be returned to inventory for future use | K39: The lower fares meant airlines could no longer rely on a few expensive tickets to keep a
B40: as in other industries. This undermines the productivity of an airline's operations; it is | K40: flight profitable. They altered their tactics to concentrate on filling planes with more
B41: increasing productivity, of course, that contributes to lower airfares and expanded | K41: passengers on cheaper tickets to offset the loss of steeper fares.
B42: service. Consequently, airlines sometimes overbook flights.
K43: Surging fuel prices have also encouraged airlines to carry as many passengers as
B44: Importantly for travelers, airlines do not overbook haphazardly. They examine the history | K44: possible on each plane and to better match routes with the appropriate-size aircraft. The
B45: of particular flights, in the process determining how many no-shows typically occur, and | K45: high fuel costs made it too expensive to fly jets not loaded to the gills, leading
B46: then decide how much to overbook that particular flight. The goal is to have the | K46: carriers to reduce capacity, hold it steady or slow growth plans.
B47: overbooking match the number of no-shows. In most cases the practice works
B48: effectively. Occasionally, however, when more people show up for a flight than there are | K48: Airlines also upgraded their technology and ticketing systems, allowing them to book
B49: seats available, airlines offer incentives to get people to give up their seats. Free tickets | K49: flights more efficiently.
B50: are the usual incentive; those volunteering are booked on another flight.
K51: The trend of packed planes is not likely to change anytime soon, executives said,
B52: Normally, there are more volunteers than the airlines need, but when there are not | K52: because most airlines are not going to add planes to their fleets in the near future.
B53: enough volunteers, airlines must bump passengers involuntarily. In the rare cases where
B54: this occurs, federal regulations require the airlines to compensate passengers for their
B55: trouble and help them make alternative travel arrangements. The amount of
B56: compensation is determined by government regulation.
B59: The U.S. Department of Transportation's "Fly Rights, A Consumer Guide to Air Travel"
B60: (airconsumer.dot.gov)
B62: Airline Overbooking
B64: Overbooking is not illegal, and most airlines overbook their schedules flights to a certain
B65: extent in order to compensate for "no-shows." Passengers are sometimes left behind or
B66: "bumped" as a result. When an oversale occurs, the Department of Transportation
B67: (DOT) requires airlines to ask people who aren't in a hurry to give up their seats
B68: voluntarily, in exchange for compensation. Those passengers bumped against their will
B69: are, with a few exceptions, entitled to compensation.
B71: Voluntary Bumping
B73: Almost any group of airline passengers includes some people with urgent travel needs
B74: and others who may be more concerned about the cost of their tickets than about
B75: getting to their destination on time. Federal rules require airlines to seek out people who
B76: are willing to give up their seats for some compensation before bumping anyone
B77: involuntarily. Here's how this works.
B79: At the check-in or boarding area, airline employees will look for volunteers when it
B80: appears that the flight has been oversold. If you're not in a rush to arrive at your next
B81: destination, you can give your reservation back to the airline in exchange for
B82: compensation and a later flight.
B84: But before you do this, you may want to get answers to these important questions:
B86: When is the next flight on which the airline can confirm your seat? The alternate flight
B87: may be just as acceptable to you. On the other hand, if they offer to put you on a
B88: standby on another flight that's full, you could be stranded.
B90: Will the airline provide amenities such as free meals, a hotel room, phone calls, or
B91: ground transportation? If not, you might have to spend the money they offer you on food
B92: or lodging while you wait for the next flight.
B94: The Department of Transportation has not said how much the airline has to give
B95: volunteers. This means carriers may negotiate with their passengers for a mutually
B96: acceptable amount of money-- or maybe a free trip or other benefits. Airlines give
B97: employees guidelines for bargaining with passengers, and they may select those
B98: volunteers willing to sell back their reservations at the lowest price.
B100: If the airline offers you a free ticket, ask about restrictions. How long is the ticket good
B101: for? Is it blacked out during holiday periods when you might want to use it? Can it be
B102: used for international flights? Most importantly, can you make a reservation, and if so,
B103: how far before departure are you permitted to make it?
B105: Involuntary Bumping
B107: DOT requires each airline to give all passengers who are bumped involuntarily a written
B108: statement describing their rights and explaining how the carrier decides who gets on an
B109: oversold flight and who doesn't. Those travelers who don't get to fly are frequently
B110: entitled to an on-the- spot payment of denied boarding compensation. The amount
B111: depends on the price of their ticket and the length of the delay:
B113: If you are bumped involuntarily and the airline arranges substitute transportation that is
B114: scheduled to get you to your final destination (including later connections) within one
B115: hour of your original scheduled arrival time, there is no compensation.
B117: If the airline arranges substitute transportation that is scheduled to arrive at your
B118: destination between one and two hours after your original arrival time (between one and
B119: four hours on international flights), the airline must pay you an amount equal to your
B120: one-way fare to your final destination, with a $200 maximum.
B122: If the substitute transportation is scheduled to get you to your destination more than two
B123: hours late (four hours internationally), or if the airline does not make any substitute travel
B124: arrangements for you, the compensation doubles (200% of your fare, $400 maximum).
B126: You always get to keep your original ticket and use it on another flight. If you choose to
B127: make your own arrangement, you can request an "involuntary refund" for the ticket for
B128: the flight you were bumped from. The denied boarding compensation is essentially a
B129: payment for your inconvenience.
B131: Like all rules, however, there are a few conditions and exceptions:
B133: To be eligible for compensation, you must have a confirmed reservation. An "OK" in the
B134: Status box of your ticket qualified you in this regard even if the airline can't find your
B135: reservation in the computer, as long as you didn't cancel your reservation or miss a
B136: reconfirmation deadline. You must meet the airline's deadline for buying your ticket.
B137: Discount tickets must usually be purchased within a certain number of days after their
B138: reservation was made. Other tickets normally have to be picked up no later than 30
B139: minutes before the flight.
B141: In addition to the ticketing deadline, each airline has a check-in deadline, which is the
B142: amount of time before scheduled departure that you must present yourself to the airline
B143: at the airport. For domestic flights most carriers have a deadline of 10 minutes before
B144: scheduled departure, but some can be an hour or longer. (Many airlines require
B145: passengers with advance seat assignments to check in 30 minutes before scheduled
B146: departure, even if they already have advance boarding passes. If you miss this deadline
B147: you may lose the specific seats you were promised, although not the reservation itself.)
B148: Check-in deadlines on international flights can be as much as three hours before
B149: scheduled departure time, due partially to security procedures. Some airlines may
B150: simply require you to be at the ticket/baggage counter by this time; most, however,
B151: require that you get all the way to the boarding area. If you miss the ticketing or check-
B152: in deadline, you may have lost your reservation and your right to compensation if the
B153: flight is oversold.
B155: As noted above, no compensation is due if the airline arranges substitute transportation
B156: which is scheduled to arrive at your destination within one hour of your originally
B157: scheduled arrival time. If the airline must substitute a smaller plane for the one it
B158: originally planned to use, the carrier isn't required to pay people who are bumped as a
B159: result.
B161: The rules do not apply to charter flights, or to scheduled flights operated with planes that
B162: hold 60 or fewer passengers. They don't apply to international flight inbound to the
B163: United States, although some airlines on these routes may follow them voluntarily. Also,
B164: if you are flying between two foreign cities--from Pairs to Rome, for example--these rules
B165: will not apply. The European Community has a rule on bumpings that occur in an EC
B166: country; ask the airline for details, or contact DOT.
B168: The most effective way to reduce the risk of being bumped is to get to the airport early.
B169: On oversold flights the last passengers to check in are usually the first to be bumped,
B170: even if they have met the check-in deadline. Allow extra time; assume that the airport
B171: access road is backed up, the parking lot is full, and there is a long line at the check-in
B172: counter. However, if you arrive so early that your airline has another flight to your
B173: destination leaving before the one that you are booked on, either switch to the earlier
B174: flight or don't check your bag until after the first flight leaves. If you check your bag right
B175: away, it might get put on the earlier flight and remain unattended at your destination
B176: airport for hours.
B178: Airlines may offer free transportation on future flights in place of a check for denied
B179: boarding compensation. However, if you are bumped involuntarily you have the right to
B180: insist on a check if that is your preference. Once you cash the check (or accept the free
B181: flight), you will probably lose the right to demand more money from the airline later on.
B182: However, if being bumped costs you more money than the airline will pay you
B183: at the airport, you can try to negotiate a higher settlement with their complaint
B184: department. If this doesn't work you usually have 30 days from that day on the check to
B185: decide if you want to accept the amount of the check. You are always free to decline
B186: the check and take the airline to court to try to obtain more compensation. The
B187: government's denied boarding regulation spells out the airline's minimum obligation to
B188: people they bump involuntarily.
B190: Finally, don't be a "no-show." If you are holding confirmed reservation you don't plan to
B191: use, notify the airline. If you don't, they will cancel all onward or return reservations on
B192: your trip.
B195: The U.S. Supreme Court ruling on NADER v. ALLEGHENY AIRLINES
B196: http://caselaw.lp.findlaw.com/scripts/getcase.pl?court=US&vol=426&invol=290

Sheet Motivating Problem
B1: Airline Overbooking
B3: World Airways runs daily flights from Chicago to Tokyo. They face a fixed cost of $80,000
B4: for each flight (basically independent of the actual number of passengers), and there are
B5: 300 seats available on their planes. One-way tickets generate revenues (after agent
B6: commissions and the like are deducted) of $500 apiece when used, but are fully refundable
B7: if not used. The Thursday flight typically has between 5 and 95 no-shows; all intermediate
B8: values are equally likely. WA is allowed (by law) to overbook its flights, but must give
B9: compensation of $250 to all ticketed passengers not allowed to board, and must provide
B10: those passengers with alternative transportation on another carrier (the cost of providing the
B11: alternative transportation just wipes out the $500 revenue). How many tickets should they
B12: be willing to sell for the Thursday flight?
B14: [The precise distribution of N, the number of no-shows, is chosen here to simplify classroom
B15: discussion. On the following pages, any distribution could be entered. The only critical
B16: assumption we'll make is that the number of no-shows varies independently of the number
B17: of seats sold.)

Sheet Brute Force
B1: Flight Overbooking: Brute Force
F3: 80000 | G3: operating expense
F4: 500 | G4: revenue/seat
F5: 250 | G5: cost/bump | H5: 5 | I5: minimum no-shows
B6: number of | F6: 300 | G6: capacity | H6: 95 | I6: maximum no-shows
B7: no-shows | C7: prob | D7: profit
B8: =MIN_NS -> 5 | C8: =1/91 -> 0.01098901099 | D8: =-EXPENSE+SEAT_REV*MIN(SALES-B8,CAPACITY)-BUMP_CST*MAX((SALES-B8)-CAPACITY,0) -> 66250 | F8: 320 | G8: tickets sold
B9: =B8+1 -> 6 | C9: 0.01098901099 | D9: =-EXPENSE+SEAT_REV*MIN(SALES-B9,CAPACITY)-BUMP_CST*MAX(SALES-CAPACITY-B9,0) -> 66500
B10: 7 | C10: 0.01098901099 | D10: 66750
B11: 8 | C11: 0.01098901099 | D11: 67000 | F11: =showformula(D8) -> =-EXPENSE+SEAT_REV*MIN(SALES-B8,CAPACITY)-BUMP_CST*MAX((SALES-B8)-CAPACITY,0)
B12: 9 | C12: 0.01098901099 | D12: 67250
B13: 10 | C13: 0.01098901099 | D13: 67500 | F13: We're out $80,000 for sure.
B14: 11 | C14: 0.01098901099 | D14: 67750
B15: 12 | C15: 0.01098901099 | D15: 68000 | F15: SALES-B8 = "tickets sold" - "no-shows" is the number of passengers who show up at the gate.
B16: 13 | C16: 0.01098901099 | D16: 68250
B17: 14 | C17: 0.01098901099 | D17: 68500 | F17: We seat 300 … unless "tickets sold" - "no-shows" is smaller than 300.
B18: 15 | C18: 0.01098901099 | D18: 68750
B19: 16 | C19: 0.01098901099 | D19: 69000 | F19: We only bump passengers if the number of passengers who show up,
B20: 17 | C20: 0.01098901099 | D20: 69250 | F20: "tickets sold" - "no-shows", exceeds the capacity,
B21: 18 | C21: 0.01098901099 | D21: 69500 | F21: i.e., if "tickets sold" - "capacity" - "no-shows" is positive.
B22: 19 | C22: 0.01098901099 | D22: 69750
B23: 20 | C23: 0.01098901099 | D23: 70000
B24: 21 | C24: 0.01098901099 | D24: 69500
B25: 22 | C25: 0.01098901099 | D25: 69000
B26: 23 | C26: 0.01098901099 | D26: 68500
B27: 24 | C27: 0.01098901099 | D27: 68000
B28: 25 | C28: 0.01098901099 | D28: 67500
B29: 26 | C29: 0.01098901099 | D29: 67000
B30: 27 | C30: 0.01098901099 | D30: 66500
B31: 28 | C31: 0.01098901099 | D31: 66000
B32: 29 | C32: 0.01098901099 | D32: 65500
B33: 30 | C33: 0.01098901099 | D33: 65000
B34: 31 | C34: 0.01098901099 | D34: 64500
B35: 32 | C35: 0.01098901099 | D35: 64000
B36: 33 | C36: 0.01098901099 | D36: 63500
B37: 34 | C37: 0.01098901099 | D37: 63000
B38: 35 | C38: 0.01098901099 | D38: 62500
B39: 36 | C39: 0.01098901099 | D39: 62000
B40: 37 | C40: =1/91 -> 0.01098901099 | D40: 61500
B41: =B40+1 -> 38 | C41: 0.01098901099 | D41: 61000
B42: 39 | C42: 0.01098901099 | D42: 60500
B43: 40 | C43: 0.01098901099 | D43: 60000
B44: 41 | C44: 0.01098901099 | D44: 59500
B45: 42 | C45: 0.01098901099 | D45: 59000
B46: 43 | C46: 0.01098901099 | D46: 58500
B47: 44 | C47: 0.01098901099 | D47: 58000
B48: 45 | C48: 0.01098901099 | D48: 57500
B49: 46 | C49: 0.01098901099 | D49: 57000
B50: 47 | C50: 0.01098901099 | D50: 56500
B51: 48 | C51: 0.01098901099 | D51: 56000
B52: 49 | C52: 0.01098901099 | D52: 55500
B53: 50 | C53: 0.01098901099 | D53: 55000
B54: 51 | C54: 0.01098901099 | D54: 54500
B55: 52 | C55: 0.01098901099 | D55: 54000
B56: 53 | C56: 0.01098901099 | D56: 53500
B57: 54 | C57: 0.01098901099 | D57: 53000
B58: 55 | C58: 0.01098901099 | D58: 52500
B59: 56 | C59: 0.01098901099 | D59: 52000
B60: 57 | C60: 0.01098901099 | D60: 51500
B61: 58 | C61: 0.01098901099 | D61: 51000
B62: 59 | C62: 0.01098901099 | D62: 50500
B63: 60 | C63: 0.01098901099 | D63: 50000
B64: 61 | C64: 0.01098901099 | D64: 49500
B65: 62 | C65: 0.01098901099 | D65: 49000
B66: 63 | C66: 0.01098901099 | D66: 48500
B67: 64 | C67: 0.01098901099 | D67: 48000
B68: 65 | C68: 0.01098901099 | D68: 47500
B69: 66 | C69: 0.01098901099 | D69: 47000
B70: 67 | C70: 0.01098901099 | D70: 46500
B71: 68 | C71: 0.01098901099 | D71: 46000
B72: 69 | C72: =1/91 -> 0.01098901099 | D72: 45500
B73: =B72+1 -> 70 | C73: 0.01098901099 | D73: =-EXPENSE+SEAT_REV*MIN(SALES-B73,CAPACITY)-BUMP_CST*MAX(SALES-CAPACITY-B73,0) -> 45000
B74: 71 | C74: 0.01098901099 | D74: 44500
B75: 72 | C75: 0.01098901099 | D75: 44000
B76: 73 | C76: 0.01098901099 | D76: 43500
B77: 74 | C77: 0.01098901099 | D77: 43000
B78: 75 | C78: 0.01098901099 | D78: 42500
B79: 76 | C79: 0.01098901099 | D79: 42000
B80: 77 | C80: 0.01098901099 | D80: 41500
B81: 78 | C81: 0.01098901099 | D81: 41000
B82: 79 | C82: 0.01098901099 | D82: 40500
B83: 80 | C83: 0.01098901099 | D83: 40000
B84: 81 | C84: 0.01098901099 | D84: 39500
B85: 82 | C85: 0.01098901099 | D85: 39000
B86: 83 | C86: 0.01098901099 | D86: 38500
B87: 84 | C87: 0.01098901099 | D87: 38000
B88: 85 | C88: 0.01098901099 | D88: 37500
B89: 86 | C89: 0.01098901099 | D89: 37000
B90: 87 | C90: 0.01098901099 | D90: 36500
B91: 88 | C91: 0.01098901099 | D91: 36000
B92: 89 | C92: 0.01098901099 | D92: 35500
B93: 90 | C93: 0.01098901099 | D93: 35000
B94: 91 | C94: 0.01098901099 | D94: 34500
B95: 92 | C95: 0.01098901099 | D95: 34000
B96: 93 | C96: 0.01098901099 | D96: 33500
B97: 94 | C97: 0.01098901099 | D97: 33000
B98: 95 | C98: 0.01098901099 | D98: 32500

Sheet Overbooking 1
B1: Flight Overbooking: Brute Force
F3: 80000 | G3: operating expense
F4: 500 | G4: revenue/seat
F5: 250 | G5: cost/bump | H5: 5 | I5: minimum no-shows
B6: number of | F6: 300 | G6: capacity | H6: 95 | I6: maximum no-shows
B7: no-shows | C7: prob | D7: profit
B8: =MIN_NS -> 5 | C8: =1/91 -> 0.01098901099 | D8: =-EXPENSE+SEAT_REV*MIN(CAPACITY,SALES-B8)-BUMP_CST*MAX(SALES-B8-CAPACITY,0) -> 55000.0013 | F8: 364.9999948 | G8: tickets sold | J8: The data table shows, explicitly, the manner in which expected
B9: =B8+1 -> 6 | C9: 0.01098901099 | D9: =-EXPENSE+SEAT_REV*MIN(CAPACITY,SALES-B9)-BUMP_CST*MAX(SALES-B9-CAPACITY,0) -> 55250.0013 | J9: profit varies with our booking policy.
B10: =B9+1 -> 7 | C10: 0.01098901099 | D10: 55500.0013 | G10: =SUMPRODUCT(C8:C98,D8:D98) -> 62417.58239 | H10: expected profit
B11: 8 | C11: 0.01098901099 | D11: 55750.0013 | G11: =SEAT_REV*CAPACITY-EXPENSE -> 70000 | H11: certainty profit | J11: Alternatively, Solver can be used to find the optimal policy:
B12: 9 | C12: 0.01098901099 | D12: 56000.0013 | G12: =G11-G10 -> 7582.417611 | H12: uncertainty cost | J12: Change the policy (F8) to something else, such as 350, and select
B13: 10 | C13: 0.01098901099 | D13: 56250.0013 | J13: Tools / Solver to see the setup, and then Solve to find the best policy.
B14: 11 | C14: 0.01098901099 | D14: 56500.0013 | F14: sold | G14: profit
B15: 12 | C15: 0.01098901099 | D15: 56750.0013 | F15: =SALES -> 364.9999948 | G15: =G10 -> 62417.58239
B16: 13 | C16: 0.01098901099 | D16: 57000.0013 | F16: 305 | G16: 47500
B17: 14 | C17: 0.01098901099 | D17: 57250.0013 | F17: 306 | G17: 47991.75824
B18: 15 | C18: 0.01098901099 | D18: 57500.0013 | F18: 307 | G18: 48475.27473
B19: 16 | C19: 0.01098901099 | D19: 57750.0013 | F19: 308 | G19: 48950.54945
B20: 17 | C20: 0.01098901099 | D20: 58000.0013 | F20: 309 | G20: 49417.58242
B21: 18 | C21: 0.01098901099 | D21: 58250.0013 | F21: 310 | G21: 49876.37363
B22: 19 | C22: 0.01098901099 | D22: 58500.0013 | F22: 311 | G22: 50326.92308
B23: 20 | C23: 0.01098901099 | D23: 58750.0013 | F23: 312 | G23: 50769.23077
B24: 21 | C24: 0.01098901099 | D24: 59000.0013 | F24: 313 | G24: 51203.2967
B25: 22 | C25: =1/91 -> 0.01098901099 | D25: 59250.0013 | F25: 314 | G25: 51629.12088
B26: =B25+1 -> 23 | C26: 0.01098901099 | D26: 59500.0013 | F26: 315 | G26: 52046.7033
B27: 24 | C27: 0.01098901099 | D27: 59750.0013 | F27: 316 | G27: 52456.04396
B28: 25 | C28: 0.01098901099 | D28: 60000.0013 | F28: 317 | G28: 52857.14286
B29: 26 | C29: 0.01098901099 | D29: 60250.0013 | F29: 318 | G29: 53250
B30: 27 | C30: 0.01098901099 | D30: 60500.0013 | F30: 319 | G30: 53634.61538
B31: 28 | C31: 0.01098901099 | D31: 60750.0013 | F31: 320 | G31: 54010.98901
B32: 29 | C32: 0.01098901099 | D32: 61000.0013 | F32: 321 | G32: 54379.12088
B33: 30 | C33: 0.01098901099 | D33: 61250.0013 | F33: 322 | G33: 54739.01099
B34: 31 | C34: 0.01098901099 | D34: 61500.0013 | F34: 323 | G34: 55090.65934
B35: 32 | C35: 0.01098901099 | D35: 61750.0013 | F35: 324 | G35: 55434.06593
B36: 33 | C36: 0.01098901099 | D36: 62000.0013 | F36: 325 | G36: 55769.23077
B37: 34 | C37: 0.01098901099 | D37: 62250.0013 | F37: 326 | G37: 56096.15385
B38: 35 | C38: 0.01098901099 | D38: 62500.0013 | F38: 327 | G38: 56414.83516
B39: 36 | C39: 0.01098901099 | D39: 62750.0013 | F39: 328 | G39: 56725.27473
B40: 37 | C40: 0.01098901099 | D40: 63000.0013 | F40: 329 | G40: 57027.47253
B41: 38 | C41: =1/91 -> 0.01098901099 | D41: 63250.0013 | F41: 330 | G41: 57321.42857
B42: =B41+1 -> 39 | C42: 0.01098901099 | D42: 63500.0013 | F42: 331 | G42: 57607.14286
B43: 40 | C43: 0.01098901099 | D43: 63750.0013 | F43: 332 | G43: 57884.61538
B44: 41 | C44: 0.01098901099 | D44: 64000.0013 | F44: 333 | G44: 58153.84615
B45: 42 | C45: 0.01098901099 | D45: 64250.0013 | F45: 334 | G45: 58414.83516
B46: 43 | C46: 0.01098901099 | D46: 64500.0013 | F46: 335 | G46: 58667.58242
B47: 44 | C47: 0.01098901099 | D47: 64750.0013 | F47: 336 | G47: 58912.08791
B48: 45 | C48: 0.01098901099 | D48: 65000.0013 | F48: 337 | G48: 59148.35165
B49: 46 | C49: 0.01098901099 | D49: 65250.0013 | F49: 338 | G49: 59376.37363
B50: 47 | C50: 0.01098901099 | D50: 65500.0013 | F50: 339 | G50: 59596.15385
B51: 48 | C51: 0.01098901099 | D51: 65750.0013 | F51: 340 | G51: 59807.69231
B52: 49 | C52: 0.01098901099 | D52: 66000.0013 | F52: 341 | G52: 60010.98901
B53: 50 | C53: 0.01098901099 | D53: 66250.0013 | F53: 342 | G53: 60206.04396
B54: 51 | C54: 0.01098901099 | D54: 66500.0013 | F54: 343 | G54: 60392.85714
B55: 52 | C55: 0.01098901099 | D55: 66750.0013 | F55: 344 | G55: 60571.42857
B56: 53 | C56: 0.01098901099 | D56: 67000.0013 | F56: 345 | G56: 60741.75824
B57: 54 | C57: =1/91 -> 0.01098901099 | D57: 67250.0013 | F57: 346 | G57: 60903.84615
B58: =B57+1 -> 55 | C58: 0.01098901099 | D58: 67500.0013 | F58: 347 | G58: 61057.69231
B59: 56 | C59: 0.01098901099 | D59: 67750.0013 | F59: 348 | G59: 61203.2967
B60: 57 | C60: 0.01098901099 | D60: 68000.0013 | F60: 349 | G60: 61340.65934
B61: 58 | C61: 0.01098901099 | D61: 68250.0013 | F61: 350 | G61: 61469.78022
B62: 59 | C62: 0.01098901099 | D62: 68500.0013 | F62: 351 | G62: 61590.65934
B63: 60 | C63: 0.01098901099 | D63: 68750.0013 | F63: 352 | G63: 61703.2967
B64: 61 | C64: 0.01098901099 | D64: 69000.0013 | F64: 353 | G64: 61807.69231
B65: 62 | C65: 0.01098901099 | D65: 69250.0013 | F65: 354 | G65: 61903.84615
B66: 63 | C66: 0.01098901099 | D66: 69500.0013 | F66: 355 | G66: 61991.75824
B67: 64 | C67: 0.01098901099 | D67: 69750.0013 | F67: 356 | G67: 62071.42857
B68: 65 | C68: 0.01098901099 | D68: 69999.9974 | F68: 357 | G68: 62142.85714
B69: 66 | C69: 0.01098901099 | D69: 69499.9974 | F69: 358 | G69: 62206.04396
B70: 67 | C70: 0.01098901099 | D70: 68999.9974 | F70: 359 | G70: 62260.98901
B71: 68 | C71: 0.01098901099 | D71: 68499.9974 | F71: 360 | G71: 62307.69231
B72: 69 | C72: 0.01098901099 | D72: 67999.9974 | F72: 361 | G72: 62346.15385
B73: 70 | C73: =1/91 -> 0.01098901099 | D73: =-EXPENSE+SEAT_REV*MIN(CAPACITY,SALES-B73)-BUMP_CST*MAX(SALES-B73-CAPACITY,0) -> 67499.9974 | F73: 362 | G73: 62376.37363
B74: =B73+1 -> 71 | C74: 0.01098901099 | D74: 66999.9974 | F74: 363 | G74: 62398.35165
B75: 72 | C75: 0.01098901099 | D75: 66499.9974 | F75: 364 | G75: 62412.08791
B76: 73 | C76: 0.01098901099 | D76: 65999.9974 | F76: 365 | G76: 62417.58242
B77: 74 | C77: 0.01098901099 | D77: 65499.9974 | F77: 366 | G77: 62414.83516
B78: 75 | C78: 0.01098901099 | D78: 64999.9974 | F78: 367 | G78: 62403.84615
B79: 76 | C79: 0.01098901099 | D79: 64499.9974 | F79: 368 | G79: 62384.61538
B80: 77 | C80: 0.01098901099 | D80: 63999.9974 | F80: 369 | G80: 62357.14286
B81: 78 | C81: 0.01098901099 | D81: 63499.9974 | F81: 370 | G81: 62321.42857
B82: 79 | C82: 0.01098901099 | D82: 62999.9974 | F82: 371 | G82: 62277.47253
B83: 80 | C83: 0.01098901099 | D83: 62499.9974 | F83: 372 | G83: 62225.27473
B84: 81 | C84: 0.01098901099 | D84: 61999.9974 | F84: 373 | G84: 62164.83516
B85: 82 | C85: 0.01098901099 | D85: 61499.9974 | F85: 374 | G85: 62096.15385
B86: 83 | C86: 0.01098901099 | D86: 60999.9974 | F86: 375 | G86: 62019.23077
B87: 84 | C87: 0.01098901099 | D87: 60499.9974 | F87: 376 | G87: 61934.06593
B88: 85 | C88: 0.01098901099 | D88: 59999.9974 | F88: 377 | G88: 61840.65934
B89: 86 | C89: =1/91 -> 0.01098901099 | D89: 59499.9974 | F89: 378 | G89: 61739.01099
B90: =B89+1 -> 87 | C90: 0.01098901099 | D90: 58999.9974 | F90: 379 | G90: 61629.12088
B91: 88 | C91: 0.01098901099 | D91: 58499.9974 | F91: 380 | G91: 61510.98901
B92: 89 | C92: 0.01098901099 | D92: 57999.9974 | F92: 381 | G92: 61384.61538
B93: 90 | C93: 0.01098901099 | D93: 57499.9974 | F93: 382 | G93: 61250
B94: 91 | C94: 0.01098901099 | D94: 56999.9974 | F94: 383 | G94: 61107.14286
B95: 92 | C95: 0.01098901099 | D95: 56499.9974 | F95: 384 | G95: 60956.04396
B96: 93 | C96: 0.01098901099 | D96: 55999.9974 | F96: 385 | G96: 60796.7033
B97: 94 | C97: 0.01098901099 | D97: 55499.9974 | F97: 386 | G97: 60629.12088
B98: 95 | C98: 0.01098901099 | D98: 54999.9974 | F98: 387 | G98: 60453.2967
F99: 388 | G99: 60269.23077
F100: 389 | G100: 60076.92308
F101: 390 | G101: 59876.37363
F102: 391 | G102: 59667.58242
F103: 392 | G103: 59450.54945
F104: 393 | G104: 59225.27473
F105: 394 | G105: 58991.75824
F106: 395 | G106: 58750

Sheet Simulation
B1: Flight Overbooking: Simulation
F3: 80000 | G3: operating expense
F4: 500 | G4: revenue/seat
D5: cumulative | F5: 250 | G5: cost/bump | H5: 5 | I5: minimum no-shows
B6: number of | D6: prob | F6: 300 | G6: capacity | H6: 95 | I6: maximum no-shows
B7: no-shows | C7: prob | D7: 0
B8: =MIN_NS -> 5 | C8: =1/91 -> 0.01098901099 | D8: =C8+D7 -> 0.01098901099 | F8: 320 | G8: tickets sold
B9: =B8+1 -> 6 | C9: 0.01098901099 | D9: =C9+D8 -> 0.02197802198 | F9: =LOOKUP(RAND(),D7:D97,B8:B98) -> 90 | G9: no-shows | H9: =showformula(F9) -> =LOOKUP(RAND(),D7:D97,B8:B98)
B10: 7 | C10: 0.01098901099 | D10: 0.03296703297 | F10: =-EXPENSE+SEAT_REV*MIN(CAPACITY,SALES-F9)-BUMP_CST*MAX(0,SALES-F9-CAPACITY) -> 35000 | G10: profit | H10: =showformula(F10) -> =-EXPENSE+SEAT_REV*MIN(CAPACITY,SALES-F9)-BUMP_CST*MAX(0,SALES-F9-CAPACITY)
B11: 8 | C11: 0.01098901099 | D11: 0.04395604396
B12: 9 | C12: 0.01098901099 | D12: 0.05494505495
B13: 10 | C13: 0.01098901099 | D13: 0.06593406593
B14: 11 | C14: 0.01098901099 | D14: 0.07692307692
B15: 12 | C15: 0.01098901099 | D15: 0.08791208791
B16: 13 | C16: 0.01098901099 | D16: 0.0989010989
B17: 14 | C17: 0.01098901099 | D17: 0.1098901099
B18: 15 | C18: 0.01098901099 | D18: 0.1208791209
B19: 16 | C19: 0.01098901099 | D19: 0.1318681319
B20: 17 | C20: 0.01098901099 | D20: 0.1428571429
B21: 18 | C21: 0.01098901099 | D21: 0.1538461538
B22: 19 | C22: 0.01098901099 | D22: 0.1648351648
B23: 20 | C23: 0.01098901099 | D23: 0.1758241758
B24: 21 | C24: 0.01098901099 | D24: 0.1868131868
B25: 22 | C25: 0.01098901099 | D25: 0.1978021978
B26: 23 | C26: 0.01098901099 | D26: 0.2087912088
B27: 24 | C27: 0.01098901099 | D27: 0.2197802198
B28: 25 | C28: 0.01098901099 | D28: 0.2307692308
B29: 26 | C29: 0.01098901099 | D29: 0.2417582418
B30: 27 | C30: 0.01098901099 | D30: 0.2527472527
B31: 28 | C31: 0.01098901099 | D31: 0.2637362637
B32: 29 | C32: 0.01098901099 | D32: 0.2747252747
B33: 30 | C33: 0.01098901099 | D33: 0.2857142857
B34: 31 | C34: 0.01098901099 | D34: 0.2967032967
B35: 32 | C35: 0.01098901099 | D35: 0.3076923077
B36: 33 | C36: 0.01098901099 | D36: 0.3186813187
B37: 34 | C37: 0.01098901099 | D37: 0.3296703297
B38: 35 | C38: 0.01098901099 | D38: 0.3406593407
B39: 36 | C39: 0.01098901099 | D39: 0.3516483516
B40: 37 | C40: =1/91 -> 0.01098901099 | D40: 0.3626373626
B41: =B40+1 -> 38 | C41: 0.01098901099 | D41: 0.3736263736
B42: 39 | C42: 0.01098901099 | D42: 0.3846153846
B43: 40 | C43: 0.01098901099 | D43: 0.3956043956
B44: 41 | C44: 0.01098901099 | D44: 0.4065934066
B45: 42 | C45: 0.01098901099 | D45: 0.4175824176
B46: 43 | C46: 0.01098901099 | D46: 0.4285714286
B47: 44 | C47: 0.01098901099 | D47: 0.4395604396
B48: 45 | C48: 0.01098901099 | D48: 0.4505494505
B49: 46 | C49: 0.01098901099 | D49: 0.4615384615
B50: 47 | C50: 0.01098901099 | D50: 0.4725274725
B51: 48 | C51: 0.01098901099 | D51: 0.4835164835
B52: 49 | C52: 0.01098901099 | D52: 0.4945054945
B53: 50 | C53: 0.01098901099 | D53: 0.5054945055
B54: 51 | C54: 0.01098901099 | D54: 0.5164835165
B55: 52 | C55: 0.01098901099 | D55: 0.5274725275
B56: 53 | C56: 0.01098901099 | D56: 0.5384615385
B57: 54 | C57: 0.01098901099 | D57: 0.5494505495
B58: 55 | C58: 0.01098901099 | D58: 0.5604395604
B59: 56 | C59: 0.01098901099 | D59: 0.5714285714
B60: 57 | C60: 0.01098901099 | D60: 0.5824175824
B61: 58 | C61: 0.01098901099 | D61: 0.5934065934
B62: 59 | C62: 0.01098901099 | D62: 0.6043956044
B63: 60 | C63: 0.01098901099 | D63: 0.6153846154
B64: 61 | C64: 0.01098901099 | D64: 0.6263736264
B65: 62 | C65: 0.01098901099 | D65: 0.6373626374
B66: 63 | C66: 0.01098901099 | D66: 0.6483516484
B67: 64 | C67: 0.01098901099 | D67: 0.6593406593
B68: 65 | C68: 0.01098901099 | D68: 0.6703296703
B69: 66 | C69: 0.01098901099 | D69: 0.6813186813
B70: 67 | C70: 0.01098901099 | D70: 0.6923076923
B71: 68 | C71: 0.01098901099 | D71: 0.7032967033
B72: 69 | C72: =1/91 -> 0.01098901099 | D72: 0.7142857143
B73: =B72+1 -> 70 | C73: 0.01098901099 | D73: =C73+D72 -> 0.7252747253
B74: 71 | C74: 0.01098901099 | D74: 0.7362637363
B75: 72 | C75: 0.01098901099 | D75: 0.7472527473
B76: 73 | C76: 0.01098901099 | D76: 0.7582417582
B77: 74 | C77: 0.01098901099 | D77: 0.7692307692
B78: 75 | C78: 0.01098901099 | D78: 0.7802197802
B79: 76 | C79: 0.01098901099 | D79: 0.7912087912
B80: 77 | C80: 0.01098901099 | D80: 0.8021978022
B81: 78 | C81: 0.01098901099 | D81: 0.8131868132
B82: 79 | C82: 0.01098901099 | D82: 0.8241758242
B83: 80 | C83: 0.01098901099 | D83: 0.8351648352
B84: 81 | C84: 0.01098901099 | D84: 0.8461538462
B85: 82 | C85: 0.01098901099 | D85: 0.8571428571
B86: 83 | C86: 0.01098901099 | D86: 0.8681318681
B87: 84 | C87: 0.01098901099 | D87: 0.8791208791
B88: 85 | C88: 0.01098901099 | D88: 0.8901098901
B89: 86 | C89: 0.01098901099 | D89: 0.9010989011
B90: 87 | C90: 0.01098901099 | D90: 0.9120879121
B91: 88 | C91: 0.01098901099 | D91: 0.9230769231
B92: 89 | C92: 0.01098901099 | D92: 0.9340659341
B93: 90 | C93: 0.01098901099 | D93: 0.9450549451
B94: 91 | C94: 0.01098901099 | D94: 0.956043956
B95: 92 | C95: 0.01098901099 | D95: 0.967032967
B96: 93 | C96: 0.01098901099 | D96: 0.978021978
B97: 94 | C97: 0.01098901099 | D97: 0.989010989
B98: 95 | C98: 0.01098901099

Sheet Overbooking 2
B1: Flight Overbooking: Simulation
I2: Load Simulation.xls in another Excel window in order
F3: 80000 | G3: operating expense | I3: to add the "Simulation" option to the Excel menu.
F4: 500 | G4: revenue/seat
D5: cumulative | F5: 250 | G5: cost/bump | H5: 5 | I5: minimum no-shows
B6: number of | D6: prob | F6: 300 | G6: capacity | H6: 95 | I6: maximum no-shows
B7: no-shows | C7: prob | D7: 0
B8: =MIN_NS -> 5 | C8: =1/91 -> 0.01098901099 | D8: =C8+D7 -> 0.01098901099 | F8: 365 | G8: tickets sold | I8: tickets sold | J8: estimated profit | K8: margin of
B9: =B8+1 -> 6 | C9: 0.01098901099 | D9: =C9+D8 -> 0.02197802198 | F9: =LOOKUP(RAND(),D7:D97,B8:B98) -> 20 | G9: no-shows | K9: error (95%)
B10: 7 | C10: 0.01098901099 | D10: 0.03296703297 | F10: =-EXPENSE+SEAT_REV*MIN(CAPACITY,SALES-F9)-BUMP_CST*MAX(0,SALES-F9-CAPACITY) -> 58750 | G10: profit | I10: =F13 -> 325 | J10: =F15 -> 55731.73 | K10: =1.96*F16/SQRT(F19) -> 68.18692646
B11: 8 | C11: 0.01098901099 | D11: 0.04395604396 | I11: =F21 -> 350 | J11: =F23 -> 61473.405 | K11: =1.96*F24/SQRT(F27) -> 36.63693641
B12: 9 | C12: 0.01098901099 | D12: 0.05494505495 | I12: =F29 -> 375 | J12: =F31 -> 62004.6875 | K12: =1.96*F32/SQRT(F35) -> 30.64503444
B13: 10 | C13: 0.01098901099 | D13: 0.06593406593 | F13: 325 | G13: tickets sold | I13: =F37 -> 390 | J13: =F39 -> 59875.335 | K13: =1.96*F40/SQRT(F43) -> 39.55844309
B14: 11 | C14: 0.01098901099 | D14: 0.07692307692 | F14: $F$10 | G14: monitored cell | I14: =F45 -> 363 | J14: =F47 -> 62415.015 | K14: =1.96*F48/SQRT(F51) -> 27.31146102
B15: 12 | C15: 0.01098901099 | D15: 0.08791208791 | F15: 55731.73 | G15: mean
B16: 13 | C16: 0.01098901099 | D16: 0.0989010989 | F16: 11001.32624 | G16: sample standard deviation
B17: 14 | C17: 0.01098901099 | D17: 0.1098901099 | F17: 35000 | G17: minimum
B18: 15 | C18: 0.01098901099 | D18: 0.1208791209 | F18: 70000 | G18: maximum
B19: 16 | C19: 0.01098901099 | D19: 0.1318681319 | F19: 100000 | G19: number of simulation runs
B20: 17 | C20: 0.01098901099 | D20: 0.1428571429
B21: 18 | C21: 0.01098901099 | D21: 0.1538461538 | F21: 350 | G21: tickets sold
B22: 19 | C22: 0.01098901099 | D22: 0.1648351648 | F22: $F$10 | G22: monitored cell
B23: 20 | C23: 0.01098901099 | D23: 0.1758241758 | F23: 61473.405 | G23: mean
B24: 21 | C24: 0.01098901099 | D24: 0.1868131868 | F24: 5911.028854 | G24: sample standard deviation
B25: 22 | C25: 0.01098901099 | D25: 0.1978021978 | F25: 47500 | G25: minimum
B26: 23 | C26: 0.01098901099 | D26: 0.2087912088 | F26: 70000 | G26: maximum
B27: 24 | C27: 0.01098901099 | D27: 0.2197802198 | F27: 100000 | G27: number of simulation runs
B28: 25 | C28: 0.01098901099 | D28: 0.2307692308
B29: 26 | C29: 0.01098901099 | D29: 0.2417582418 | F29: 375 | G29: tickets sold
B30: 27 | C30: 0.01098901099 | D30: 0.2527472527 | F30: $F$10 | G30: monitored cell
B31: 28 | C31: 0.01098901099 | D31: 0.2637362637 | F31: 62004.6875 | G31: mean
B32: 29 | C32: 0.01098901099 | D32: 0.2747252747 | F32: 4944.291214 | G32: sample standard deviation
B33: 30 | C33: 0.01098901099 | D33: 0.2857142857 | F33: 52500 | G33: minimum
B34: 31 | C34: 0.01098901099 | D34: 0.2967032967 | F34: 70000 | G34: maximum
B35: 32 | C35: 0.01098901099 | D35: 0.3076923077 | F35: 100000 | G35: number of simulation runs
B36: 33 | C36: 0.01098901099 | D36: 0.3186813187
B37: 34 | C37: 0.01098901099 | D37: 0.3296703297 | F37: 390 | G37: tickets sold
B38: 35 | C38: 0.01098901099 | D38: 0.3406593407 | F38: $F$10 | G38: monitored cell
B39: 36 | C39: 0.01098901099 | D39: 0.3516483516 | F39: 59875.335 | G39: mean
B40: 37 | C40: =1/91 -> 0.01098901099 | D40: 0.3626373626 | F40: 6382.386778 | G40: sample standard deviation
B41: =B40+1 -> 38 | C41: 0.01098901099 | D41: 0.3736263736 | F41: 48750 | G41: minimum
B42: 39 | C42: 0.01098901099 | D42: 0.3846153846 | F42: 70000 | G42: maximum
B43: 40 | C43: 0.01098901099 | D43: 0.3956043956 | F43: 100000 | G43: number of simulation runs
B44: 41 | C44: 0.01098901099 | D44: 0.4065934066
B45: 42 | C45: 0.01098901099 | D45: 0.4175824176 | F45: 363 | G45: tickets sold
B46: 43 | C46: 0.01098901099 | D46: 0.4285714286 | F46: $F$10 | G46: monitored cell
B47: 44 | C47: 0.01098901099 | D47: 0.4395604396 | F47: 62415.015 | G47: mean
B48: 45 | C48: 0.01098901099 | D48: 0.4505494505 | F48: 4406.450155 | G48: sample standard deviation
B49: 46 | C49: 0.01098901099 | D49: 0.4615384615 | F49: 54000 | G49: minimum
B50: 47 | C50: 0.01098901099 | D50: 0.4725274725 | F50: 70000 | G50: maximum
B51: 48 | C51: 0.01098901099 | D51: 0.4835164835 | F51: 100000 | G51: number of simulation runs
B52: 49 | C52: 0.01098901099 | D52: 0.4945054945
B53: 50 | C53: 0.01098901099 | D53: 0.5054945055
B54: 51 | C54: 0.01098901099 | D54: 0.5164835165
B55: 52 | C55: 0.01098901099 | D55: 0.5274725275
B56: 53 | C56: 0.01098901099 | D56: 0.5384615385
B57: 54 | C57: 0.01098901099 | D57: 0.5494505495
B58: 55 | C58: 0.01098901099 | D58: 0.5604395604
B59: 56 | C59: 0.01098901099 | D59: 0.5714285714
B60: 57 | C60: 0.01098901099 | D60: 0.5824175824
B61: 58 | C61: 0.01098901099 | D61: 0.5934065934
B62: 59 | C62: 0.01098901099 | D62: 0.6043956044
B63: 60 | C63: 0.01098901099 | D63: 0.6153846154
B64: 61 | C64: 0.01098901099 | D64: 0.6263736264
B65: 62 | C65: 0.01098901099 | D65: 0.6373626374
B66: 63 | C66: 0.01098901099 | D66: 0.6483516484
B67: 64 | C67: 0.01098901099 | D67: 0.6593406593
B68: 65 | C68: 0.01098901099 | D68: 0.6703296703
B69: 66 | C69: 0.01098901099 | D69: 0.6813186813
B70: 67 | C70: 0.01098901099 | D70: 0.6923076923
B71: 68 | C71: 0.01098901099 | D71: 0.7032967033
B72: 69 | C72: =1/91 -> 0.01098901099 | D72: 0.7142857143
B73: =B72+1 -> 70 | C73: 0.01098901099 | D73: =C73+D72 -> 0.7252747253
B74: 71 | C74: 0.01098901099 | D74: 0.7362637363
B75: 72 | C75: 0.01098901099 | D75: 0.7472527473
B76: 73 | C76: 0.01098901099 | D76: 0.7582417582
B77: 74 | C77: 0.01098901099 | D77: 0.7692307692
B78: 75 | C78: 0.01098901099 | D78: 0.7802197802
B79: 76 | C79: 0.01098901099 | D79: 0.7912087912
B80: 77 | C80: 0.01098901099 | D80: 0.8021978022
B81: 78 | C81: 0.01098901099 | D81: 0.8131868132
B82: 79 | C82: 0.01098901099 | D82: 0.8241758242
B83: 80 | C83: 0.01098901099 | D83: 0.8351648352
B84: 81 | C84: 0.01098901099 | D84: 0.8461538462
B85: 82 | C85: 0.01098901099 | D85: 0.8571428571
B86: 83 | C86: 0.01098901099 | D86: 0.8681318681
B87: 84 | C87: 0.01098901099 | D87: 0.8791208791
B88: 85 | C88: 0.01098901099 | D88: 0.8901098901
B89: 86 | C89: 0.01098901099 | D89: 0.9010989011
B90: 87 | C90: 0.01098901099 | D90: 0.9120879121
B91: 88 | C91: 0.01098901099 | D91: 0.9230769231
B92: 89 | C92: 0.01098901099 | D92: 0.9340659341
B93: 90 | C93: 0.01098901099 | D93: 0.9450549451
B94: 91 | C94: 0.01098901099 | D94: 0.956043956
B95: 92 | C95: 0.01098901099 | D95: 0.967032967
B96: 93 | C96: 0.01098901099 | D96: 0.978021978
B97: 94 | C97: 0.01098901099 | D97: 0.989010989
B98: 95 | C98: 0.01098901099

Sheet Marginal Analysis
B1: Flight Overbooking: Marginal Analysis
C3: probability | F3: =SEAT_REV/(SEAT_REV+BUMP_CST) -> 0.6666666667 | G3: critical fractile
C4: that last | F4: =305+CRIT.FRACTILE*91 -> 365.6666667 | G4: number to sell
B5: tickets | C5: sold is | D5: marginal | F5: =TRUNC(F4) -> 365 | G5: (really)
B6: sold | C6: seated | D6: profit
B7: =CAPACITY+MIN_NS -> 305 | C7: =SUM('Overbooking 1'!C8:$C$98) -> 1 | D7: =C7*SEAT_REV-(1-C7)*BUMP_CST -> 500 | F7: Our per-unit cost of being "over" is the net difference in cost between
B8: =B7+1 -> 306 | C8: =SUM('Overbooking 1'!C9:$C$98) -> 0.989010989 | D8: 491.7582418 | F8: selling a ticket to a passenger who ends up being bumped, and not
B9: 307 | C9: =SUM('Overbooking 1'!C10:$C$98) -> 0.978021978 | D9: 483.5164835 | F9: selling that ticket, i.e, $250.
B10: 308 | C10: =SUM('Overbooking 1'!C11:$C$98) -> 0.967032967 | D10: 475.2747253
B11: 309 | C11: =SUM('Overbooking 1'!C12:$C$98) -> 0.956043956 | D11: 467.032967 | F11: Our per-unit cost of being "under" is the net difference in cost between
B12: 310 | C12: =SUM('Overbooking 1'!C13:$C$98) -> 0.9450549451 | D12: 458.7912088 | F12: not selling a ticket to a passenger who would have filled a seat, and
B13: 311 | C13: =SUM('Overbooking 1'!C14:$C$98) -> 0.9340659341 | D13: 450.5494505 | F13: selling that passenger a ticket, i.e, $500.
B14: 312 | C14: =SUM('Overbooking 1'!C15:$C$98) -> 0.9230769231 | D14: 442.3076923
B15: 313 | C15: =SUM('Overbooking 1'!C16:$C$98) -> 0.9120879121 | D15: 434.0659341 | F15: The "critical fractile is
B16: 314 | C16: =SUM('Overbooking 1'!C17:$C$98) -> 0.9010989011 | D16: 425.8241758
B17: 315 | C17: =SUM('Overbooking 1'!C18:$C$98) -> 0.8901098901 | D17: 417.5824176
B18: 316 | C18: =SUM('Overbooking 1'!C19:$C$98) -> 0.8791208791 | D18: 409.3406593 | F18: We should "order" enough passengers - that is, sell enough tickets - that
B19: 317 | C19: =SUM('Overbooking 1'!C20:$C$98) -> 0.8681318681 | D19: 401.0989011 | F19: our chance of being "over" - ending up with too many
B20: 318 | C20: =SUM('Overbooking 1'!C21:$C$98) -> 0.8571428571 | D20: 392.8571429 | F20: passengers - is equal to (or just below) the critical fractile.
B21: 319 | C21: =SUM('Overbooking 1'!C22:$C$98) -> 0.8461538462 | D21: 384.6153846
B22: 320 | C22: =SUM('Overbooking 1'!C23:$C$98) -> 0.8351648352 | D22: 376.3736264 | F22: If we sell 365 tickets, our chance of being "over" - having
B23: 321 | C23: =SUM('Overbooking 1'!C24:$C$98) -> 0.8241758242 | D23: 368.1318681 | F23: less than 65 no-shows - is … | K23: =SUM('Overbooking 1'!C8:C67) -> 0.6593406593
B24: 322 | C24: =SUM('Overbooking 1'!C25:$C$98) -> 0.8131868132 | D24: 359.8901099 | F24: If we sell 366 tickets, our chance of being "over" is … | K24: =SUM('Overbooking 1'!C8:C68) -> 0.6703296703
B25: 323 | C25: =SUM('Overbooking 1'!C26:$C$98) -> 0.8021978022 | D25: 351.6483516
B26: 324 | C26: =SUM('Overbooking 1'!C27:$C$98) -> 0.7912087912 | D26: 343.4065934
B27: 325 | C27: =SUM('Overbooking 1'!C28:$C$98) -> 0.7802197802 | D27: 335.1648352
B28: 326 | C28: =SUM('Overbooking 1'!C29:$C$98) -> 0.7692307692 | D28: 326.9230769
B29: 327 | C29: =SUM('Overbooking 1'!C30:$C$98) -> 0.7582417582 | D29: 318.6813187
B30: 328 | C30: =SUM('Overbooking 1'!C31:$C$98) -> 0.7472527473 | D30: 310.4395604
B31: 329 | C31: =SUM('Overbooking 1'!C32:$C$98) -> 0.7362637363 | D31: 302.1978022
B32: 330 | C32: =SUM('Overbooking 1'!C33:$C$98) -> 0.7252747253 | D32: 293.956044
B33: 331 | C33: =SUM('Overbooking 1'!C34:$C$98) -> 0.7142857143 | D33: 285.7142857
B34: 332 | C34: =SUM('Overbooking 1'!C35:$C$98) -> 0.7032967033 | D34: 277.4725275
B35: 333 | C35: =SUM('Overbooking 1'!C36:$C$98) -> 0.6923076923 | D35: 269.2307692
B36: 334 | C36: =SUM('Overbooking 1'!C37:$C$98) -> 0.6813186813 | D36: 260.989011
B37: 335 | C37: =SUM('Overbooking 1'!C38:$C$98) -> 0.6703296703 | D37: 252.7472527
B38: 336 | C38: =SUM('Overbooking 1'!C39:$C$98) -> 0.6593406593 | D38: 244.5054945
B39: 337 | C39: =SUM('Overbooking 1'!C40:$C$98) -> 0.6483516484 | D39: =C39*SEAT_REV-(1-C39)*BUMP_CST -> 236.2637363
B40: =B39+1 -> 338 | C40: =SUM('Overbooking 1'!C41:$C$98) -> 0.6373626374 | D40: 228.021978
B41: 339 | C41: =SUM('Overbooking 1'!C42:$C$98) -> 0.6263736264 | D41: 219.7802198
B42: 340 | C42: =SUM('Overbooking 1'!C43:$C$98) -> 0.6153846154 | D42: 211.5384615
B43: 341 | C43: =SUM('Overbooking 1'!C44:$C$98) -> 0.6043956044 | D43: 203.2967033
B44: 342 | C44: =SUM('Overbooking 1'!C45:$C$98) -> 0.5934065934 | D44: 195.0549451
B45: 343 | C45: =SUM('Overbooking 1'!C46:$C$98) -> 0.5824175824 | D45: 186.8131868
B46: 344 | C46: =SUM('Overbooking 1'!C47:$C$98) -> 0.5714285714 | D46: 178.5714286
B47: 345 | C47: =SUM('Overbooking 1'!C48:$C$98) -> 0.5604395604 | D47: 170.3296703
B48: 346 | C48: =SUM('Overbooking 1'!C49:$C$98) -> 0.5494505495 | D48: 162.0879121
B49: 347 | C49: =SUM('Overbooking 1'!C50:$C$98) -> 0.5384615385 | D49: 153.8461538
B50: 348 | C50: =SUM('Overbooking 1'!C51:$C$98) -> 0.5274725275 | D50: 145.6043956
B51: 349 | C51: =SUM('Overbooking 1'!C52:$C$98) -> 0.5164835165 | D51: 137.3626374
B52: 350 | C52: =SUM('Overbooking 1'!C53:$C$98) -> 0.5054945055 | D52: 129.1208791
B53: 351 | C53: =SUM('Overbooking 1'!C54:$C$98) -> 0.4945054945 | D53: 120.8791209
B54: 352 | C54: =SUM('Overbooking 1'!C55:$C$98) -> 0.4835164835 | D54: 112.6373626
B55: 353 | C55: =SUM('Overbooking 1'!C56:$C$98) -> 0.4725274725 | D55: 104.3956044
B56: 354 | C56: =SUM('Overbooking 1'!C57:$C$98) -> 0.4615384615 | D56: 96.15384615
B57: 355 | C57: =SUM('Overbooking 1'!C58:$C$98) -> 0.4505494505 | D57: 87.91208791
B58: 356 | C58: =SUM('Overbooking 1'!C59:$C$98) -> 0.4395604396 | D58: 79.67032967
B59: 357 | C59: =SUM('Overbooking 1'!C60:$C$98) -> 0.4285714286 | D59: 71.42857143
B60: 358 | C60: =SUM('Overbooking 1'!C61:$C$98) -> 0.4175824176 | D60: 63.18681319
B61: 359 | C61: =SUM('Overbooking 1'!C62:$C$98) -> 0.4065934066 | D61: 54.94505495
B62: 360 | C62: =SUM('Overbooking 1'!C63:$C$98) -> 0.3956043956 | D62: 46.7032967
B63: 361 | C63: =SUM('Overbooking 1'!C64:$C$98) -> 0.3846153846 | D63: 38.46153846
B64: 362 | C64: =SUM('Overbooking 1'!C65:$C$98) -> 0.3736263736 | D64: 30.21978022
B65: 363 | C65: =SUM('Overbooking 1'!C66:$C$98) -> 0.3626373626 | D65: 21.97802198
B66: 364 | C66: =SUM('Overbooking 1'!C67:$C$98) -> 0.3516483516 | D66: 13.73626374
B67: 365 | C67: =SUM('Overbooking 1'!C68:$C$98) -> 0.3406593407 | D67: 5.494505495
B68: 366 | C68: =SUM('Overbooking 1'!C69:$C$98) -> 0.3296703297 | D68: -2.747252747
B69: 367 | C69: =SUM('Overbooking 1'!C70:$C$98) -> 0.3186813187 | D69: -10.98901099
B70: 368 | C70: =SUM('Overbooking 1'!C71:$C$98) -> 0.3076923077 | D70: -19.23076923
B71: 369 | C71: =SUM('Overbooking 1'!C72:$C$98) -> 0.2967032967 | D71: =C71*SEAT_REV-(1-C71)*BUMP_CST -> -27.47252747
B72: =B71+1 -> 370 | C72: =SUM('Overbooking 1'!C73:$C$98) -> 0.2857142857 | D72: -35.71428571
B73: 371 | C73: =SUM('Overbooking 1'!C74:$C$98) -> 0.2747252747 | D73: -43.95604396
B74: 372 | C74: =SUM('Overbooking 1'!C75:$C$98) -> 0.2637362637 | D74: -52.1978022
B75: 373 | C75: =SUM('Overbooking 1'!C76:$C$98) -> 0.2527472527 | D75: -60.43956044
B76: 374 | C76: =SUM('Overbooking 1'!C77:$C$98) -> 0.2417582418 | D76: -68.68131868
B77: 375 | C77: =SUM('Overbooking 1'!C78:$C$98) -> 0.2307692308 | D77: -76.92307692
B78: 376 | C78: =SUM('Overbooking 1'!C79:$C$98) -> 0.2197802198 | D78: -85.16483516
B79: 377 | C79: =SUM('Overbooking 1'!C80:$C$98) -> 0.2087912088 | D79: -93.40659341
B80: 378 | C80: =SUM('Overbooking 1'!C81:$C$98) -> 0.1978021978 | D80: -101.6483516
B81: 379 | C81: =SUM('Overbooking 1'!C82:$C$98) -> 0.1868131868 | D81: -109.8901099
B82: 380 | C82: =SUM('Overbooking 1'!C83:$C$98) -> 0.1758241758 | D82: -118.1318681
B83: 381 | C83: =SUM('Overbooking 1'!C84:$C$98) -> 0.1648351648 | D83: -126.3736264
B84: 382 | C84: =SUM('Overbooking 1'!C85:$C$98) -> 0.1538461538 | D84: -134.6153846
B85: 383 | C85: =SUM('Overbooking 1'!C86:$C$98) -> 0.1428571429 | D85: -142.8571429
B86: 384 | C86: =SUM('Overbooking 1'!C87:$C$98) -> 0.1318681319 | D86: -151.0989011
B87: 385 | C87: =SUM('Overbooking 1'!C88:$C$98) -> 0.1208791209 | D87: -159.3406593
B88: 386 | C88: =SUM('Overbooking 1'!C89:$C$98) -> 0.1098901099 | D88: -167.5824176
B89: 387 | C89: =SUM('Overbooking 1'!C90:$C$98) -> 0.0989010989 | D89: -175.8241758
B90: 388 | C90: =SUM('Overbooking 1'!C91:$C$98) -> 0.08791208791 | D90: -184.0659341
B91: 389 | C91: =SUM('Overbooking 1'!C92:$C$98) -> 0.07692307692 | D91: -192.3076923
B92: 390 | C92: =SUM('Overbooking 1'!C93:$C$98) -> 0.06593406593 | D92: -200.5494505
B93: 391 | C93: =SUM('Overbooking 1'!C94:$C$98) -> 0.05494505495 | D93: -208.7912088
B94: 392 | C94: =SUM('Overbooking 1'!C95:$C$98) -> 0.04395604396 | D94: -217.032967
B95: 393 | C95: =SUM('Overbooking 1'!C96:$C$98) -> 0.03296703297 | D95: -225.2747253
B96: 394 | C96: =SUM('Overbooking 1'!C97:$C$98) -> 0.02197802198 | D96: -233.5164835
B97: 395 | C97: =SUM('Overbooking 1'!C98:$C$98) -> 0.01098901099 | D97: -241.7582418

Sheet Overbooking 3
B1: Flight Overbooking: Marginal Analysis
C3: probability | F3: =SEAT_REV/(SEAT_REV+BUMP_CST) -> 0.6666666667 | G3: critical fractile
C4: that last | F4: =305+CRIT.FRACTILE*91 -> 365.6666667 | G4: number to sell
B5: tickets | C5: sold is | D5: marginal | F5: =TRUNC(F4) -> 365 | G5: (really)
B6: sold | C6: seated | D6: profit
B7: =CAPACITY+MIN_NS -> 305 | C7: =SUM('Overbooking 1'!C8:$C$98) -> 1 | D7: =C7*SEAT_REV-(1-C7)*BUMP_CST -> 500 | F7: =AVERAGE(1,F5-305) -> 30.5 | G7: E[bumped | bump]
B8: =B7+1 -> 306 | C8: =SUM('Overbooking 1'!C9:$C$98) -> 0.989010989 | D8: 491.7582418 | F8: =(F5-305)/91 -> 0.6593406593 | G8: Pr[bump]
B9: =B8+1 -> 307 | C9: =SUM('Overbooking 1'!C10:$C$98) -> 0.978021978 | D9: 483.5164835 | F9: =AVERAGE(1,395-F5) -> 15.5 | G9: E[empty | empty]
B10: 308 | C10: =SUM('Overbooking 1'!C11:$C$98) -> 0.967032967 | D10: 475.2747253 | F10: =(395-F5)/91 -> 0.3296703297 | G10: Pr[empty]
B11: 309 | C11: =SUM('Overbooking 1'!C12:$C$98) -> 0.956043956 | D11: 467.032967
B12: 310 | C12: =SUM('Overbooking 1'!C13:$C$98) -> 0.9450549451 | D12: 458.7912088 | F12: =F7*F8*BUMP_CST+F9*F10*SEAT_REV+(1-F8-F10)*0 -> 7582.417582 | G12: uncertainty cost
B13: 311 | C13: =SUM('Overbooking 1'!C14:$C$98) -> 0.9340659341 | D13: 450.5494505
B14: 312 | C14: =SUM('Overbooking 1'!C15:$C$98) -> 0.9230769231 | D14: 442.3076923 | F14: The formulas used above work
B15: 313 | C15: =SUM('Overbooking 1'!C16:$C$98) -> 0.9120879121 | D15: 434.0659341 | F15: for the given problem, where all
B16: 314 | C16: =SUM('Overbooking 1'!C17:$C$98) -> 0.9010989011 | D16: 425.8241758 | F16: no-show levels are equally likely.
B17: 315 | C17: =SUM('Overbooking 1'!C18:$C$98) -> 0.8901098901 | D17: 417.5824176 | F17: = | G17: = | H17: =
B18: 316 | C18: =SUM('Overbooking 1'!C19:$C$98) -> 0.8791208791 | D18: 409.3406593 | F18: The formulas below show how we
B19: 317 | C19: =SUM('Overbooking 1'!C20:$C$98) -> 0.8681318681 | D19: 401.0989011 | F19: can handle the general case
B20: 318 | C20: =SUM('Overbooking 1'!C21:$C$98) -> 0.8571428571 | D20: 392.8571429 | F20: where the probabilities are not
B21: 319 | C21: =SUM('Overbooking 1'!C22:$C$98) -> 0.8461538462 | D21: 384.6153846 | F21: equal.
B22: 320 | C22: =SUM('Overbooking 1'!C23:$C$98) -> 0.8351648352 | D22: 376.3736264
B23: 321 | C23: =SUM('Overbooking 1'!C24:$C$98) -> 0.8241758242 | D23: 368.1318681 | F23: =LOOKUP(CRIT.FRACTILE,1-C7:C97,B7:B97) -> 365 | G23: number to sell
B24: 322 | C24: =SUM('Overbooking 1'!C25:$C$98) -> 0.8131868132 | D24: 359.8901099
B25: =B24+1 -> 323 | C25: =SUM('Overbooking 1'!C26:$C$98) -> 0.8021978022 | D25: 351.6483516 | F25: =SUMPRODUCT((F23-CAPACITY-'Overbooking 1'!B8:B98>0)*(F23-CAPACITY-'Overbooking 1'!B8:B98)*'Overbooking 1'!C8:C98)/F26 -> 30.5 | G25: E[bumped | bump]
B26: 324 | C26: =SUM('Overbooking 1'!C27:$C$98) -> 0.7912087912 | D26: 343.4065934 | F26: =SUMPRODUCT(('Overbooking 1'!B8:B98<F23-CAPACITY)*'Overbooking 1'!C8:C98) -> 0.6593406593 | G26: Pr[bump]
B27: 325 | C27: =SUM('Overbooking 1'!C28:$C$98) -> 0.7802197802 | D27: 335.1648352 | F27: =SUMPRODUCT((CAPACITY+'Overbooking 1'!B8:B98-F23>0)*(CAPACITY+'Overbooking 1'!B8:B98-F23)*'Overbooking 1'!C8:C98)/F28 -> 15.5 | G27: E[empty | empty]
B28: 326 | C28: =SUM('Overbooking 1'!C29:$C$98) -> 0.7692307692 | D28: 326.9230769 | F28: =SUMPRODUCT(('Overbooking 1'!B8:B98>F23-CAPACITY)*'Overbooking 1'!C8:C98) -> 0.3296703297 | G28: Pr[empty]
B29: 327 | C29: =SUM('Overbooking 1'!C30:$C$98) -> 0.7582417582 | D29: 318.6813187
B30: 328 | C30: =SUM('Overbooking 1'!C31:$C$98) -> 0.7472527473 | D30: 310.4395604 | F30: =F25*F26*BUMP_CST+F27*F28*SEAT_REV+(1-F26-F28)*0 -> 7582.417582 | G30: uncertainty cost
B31: 329 | C31: =SUM('Overbooking 1'!C32:$C$98) -> 0.7362637363 | D31: 302.1978022
B32: 330 | C32: =SUM('Overbooking 1'!C33:$C$98) -> 0.7252747253 | D32: 293.956044
B33: 331 | C33: =SUM('Overbooking 1'!C34:$C$98) -> 0.7142857143 | D33: 285.7142857
B34: 332 | C34: =SUM('Overbooking 1'!C35:$C$98) -> 0.7032967033 | D34: 277.4725275
B35: 333 | C35: =SUM('Overbooking 1'!C36:$C$98) -> 0.6923076923 | D35: 269.2307692
B36: 334 | C36: =SUM('Overbooking 1'!C37:$C$98) -> 0.6813186813 | D36: 260.989011
B37: 335 | C37: =SUM('Overbooking 1'!C38:$C$98) -> 0.6703296703 | D37: 252.7472527
B38: 336 | C38: =SUM('Overbooking 1'!C39:$C$98) -> 0.6593406593 | D38: 244.5054945
B39: 337 | C39: =SUM('Overbooking 1'!C40:$C$98) -> 0.6483516484 | D39: =C39*SEAT_REV-(1-C39)*BUMP_CST -> 236.2637363
B40: 338 | C40: =SUM('Overbooking 1'!C41:$C$98) -> 0.6373626374 | D40: 228.021978
B41: =B40+1 -> 339 | C41: =SUM('Overbooking 1'!C42:$C$98) -> 0.6263736264 | D41: 219.7802198
B42: 340 | C42: =SUM('Overbooking 1'!C43:$C$98) -> 0.6153846154 | D42: 211.5384615
B43: 341 | C43: =SUM('Overbooking 1'!C44:$C$98) -> 0.6043956044 | D43: 203.2967033
B44: 342 | C44: =SUM('Overbooking 1'!C45:$C$98) -> 0.5934065934 | D44: 195.0549451
B45: 343 | C45: =SUM('Overbooking 1'!C46:$C$98) -> 0.5824175824 | D45: 186.8131868
B46: 344 | C46: =SUM('Overbooking 1'!C47:$C$98) -> 0.5714285714 | D46: 178.5714286
B47: 345 | C47: =SUM('Overbooking 1'!C48:$C$98) -> 0.5604395604 | D47: 170.3296703
B48: 346 | C48: =SUM('Overbooking 1'!C49:$C$98) -> 0.5494505495 | D48: 162.0879121
B49: 347 | C49: =SUM('Overbooking 1'!C50:$C$98) -> 0.5384615385 | D49: 153.8461538
B50: 348 | C50: =SUM('Overbooking 1'!C51:$C$98) -> 0.5274725275 | D50: 145.6043956
B51: 349 | C51: =SUM('Overbooking 1'!C52:$C$98) -> 0.5164835165 | D51: 137.3626374
B52: 350 | C52: =SUM('Overbooking 1'!C53:$C$98) -> 0.5054945055 | D52: 129.1208791
B53: 351 | C53: =SUM('Overbooking 1'!C54:$C$98) -> 0.4945054945 | D53: 120.8791209
B54: 352 | C54: =SUM('Overbooking 1'!C55:$C$98) -> 0.4835164835 | D54: 112.6373626
B55: 353 | C55: =SUM('Overbooking 1'!C56:$C$98) -> 0.4725274725 | D55: 104.3956044
B56: 354 | C56: =SUM('Overbooking 1'!C57:$C$98) -> 0.4615384615 | D56: 96.15384615
B57: =B56+1 -> 355 | C57: =SUM('Overbooking 1'!C58:$C$98) -> 0.4505494505 | D57: 87.91208791
B58: 356 | C58: =SUM('Overbooking 1'!C59:$C$98) -> 0.4395604396 | D58: 79.67032967
B59: 357 | C59: =SUM('Overbooking 1'!C60:$C$98) -> 0.4285714286 | D59: 71.42857143
B60: 358 | C60: =SUM('Overbooking 1'!C61:$C$98) -> 0.4175824176 | D60: 63.18681319
B61: 359 | C61: =SUM('Overbooking 1'!C62:$C$98) -> 0.4065934066 | D61: 54.94505495
B62: 360 | C62: =SUM('Overbooking 1'!C63:$C$98) -> 0.3956043956 | D62: 46.7032967
B63: 361 | C63: =SUM('Overbooking 1'!C64:$C$98) -> 0.3846153846 | D63: 38.46153846
B64: 362 | C64: =SUM('Overbooking 1'!C65:$C$98) -> 0.3736263736 | D64: 30.21978022
B65: 363 | C65: =SUM('Overbooking 1'!C66:$C$98) -> 0.3626373626 | D65: 21.97802198
B66: 364 | C66: =SUM('Overbooking 1'!C67:$C$98) -> 0.3516483516 | D66: 13.73626374
B67: 365 | C67: =SUM('Overbooking 1'!C68:$C$98) -> 0.3406593407 | D67: 5.494505495
B68: 366 | C68: =SUM('Overbooking 1'!C69:$C$98) -> 0.3296703297 | D68: -2.747252747
B69: 367 | C69: =SUM('Overbooking 1'!C70:$C$98) -> 0.3186813187 | D69: -10.98901099
B70: 368 | C70: =SUM('Overbooking 1'!C71:$C$98) -> 0.3076923077 | D70: -19.23076923
B71: 369 | C71: =SUM('Overbooking 1'!C72:$C$98) -> 0.2967032967 | D71: =C71*SEAT_REV-(1-C71)*BUMP_CST -> -27.47252747
B72: 370 | C72: =SUM('Overbooking 1'!C73:$C$98) -> 0.2857142857 | D72: -35.71428571
B73: =B72+1 -> 371 | C73: =SUM('Overbooking 1'!C74:$C$98) -> 0.2747252747 | D73: -43.95604396
B74: 372 | C74: =SUM('Overbooking 1'!C75:$C$98) -> 0.2637362637 | D74: -52.1978022
B75: 373 | C75: =SUM('Overbooking 1'!C76:$C$98) -> 0.2527472527 | D75: -60.43956044
B76: 374 | C76: =SUM('Overbooking 1'!C77:$C$98) -> 0.2417582418 | D76: -68.68131868
B77: 375 | C77: =SUM('Overbooking 1'!C78:$C$98) -> 0.2307692308 | D77: -76.92307692
B78: 376 | C78: =SUM('Overbooking 1'!C79:$C$98) -> 0.2197802198 | D78: -85.16483516
B79: 377 | C79: =SUM('Overbooking 1'!C80:$C$98) -> 0.2087912088 | D79: -93.40659341
B80: 378 | C80: =SUM('Overbooking 1'!C81:$C$98) -> 0.1978021978 | D80: -101.6483516
B81: 379 | C81: =SUM('Overbooking 1'!C82:$C$98) -> 0.1868131868 | D81: -109.8901099
B82: 380 | C82: =SUM('Overbooking 1'!C83:$C$98) -> 0.1758241758 | D82: -118.1318681
B83: 381 | C83: =SUM('Overbooking 1'!C84:$C$98) -> 0.1648351648 | D83: -126.3736264
B84: 382 | C84: =SUM('Overbooking 1'!C85:$C$98) -> 0.1538461538 | D84: -134.6153846
B85: 383 | C85: =SUM('Overbooking 1'!C86:$C$98) -> 0.1428571429 | D85: -142.8571429
B86: 384 | C86: =SUM('Overbooking 1'!C87:$C$98) -> 0.1318681319 | D86: -151.0989011
B87: 385 | C87: =SUM('Overbooking 1'!C88:$C$98) -> 0.1208791209 | D87: -159.3406593
B88: 386 | C88: =SUM('Overbooking 1'!C89:$C$98) -> 0.1098901099 | D88: -167.5824176
B89: =B88+1 -> 387 | C89: =SUM('Overbooking 1'!C90:$C$98) -> 0.0989010989 | D89: -175.8241758
B90: 388 | C90: =SUM('Overbooking 1'!C91:$C$98) -> 0.08791208791 | D90: -184.0659341
B91: 389 | C91: =SUM('Overbooking 1'!C92:$C$98) -> 0.07692307692 | D91: -192.3076923
B92: 390 | C92: =SUM('Overbooking 1'!C93:$C$98) -> 0.06593406593 | D92: -200.5494505
B93: 391 | C93: =SUM('Overbooking 1'!C94:$C$98) -> 0.05494505495 | D93: -208.7912088
B94: 392 | C94: =SUM('Overbooking 1'!C95:$C$98) -> 0.04395604396 | D94: -217.032967
B95: 393 | C95: =SUM('Overbooking 1'!C96:$C$98) -> 0.03296703297 | D95: -225.2747253
B96: 394 | C96: =SUM('Overbooking 1'!C97:$C$98) -> 0.02197802198 | D96: -233.5164835
B97: 395 | C97: =SUM('Overbooking 1'!C98:$C$98) -> 0.01098901099 | D97: -241.7582418
